fUSD/lending_fUSD_20260316
["ID","MTS","AMOUNT","RATE_DAILY","PERIOD"]
[408460203,1773677432954,-999.99,0.00014504,2]
[408460204,1773677432963,-517.08,0.00014504,2]
[408460205,1773677432972,-1058.28,0.00014526,2]
[408460206,1773677432981,-383.10920901,0.00014573,2]
[408460207,1773677432990,-500.0,0.00014573,2]
[408460208,1773677433000,-226.79177837,0.00014573,2]
[408460209,1773677433009,-500.0,0.00014573,2]
[408460210,1773677433023,-196.23259882,0.00014573,2]
[408460211,1773677433034,-500.0,0.00014573,2]
[408460212,1773677433043,-2000.0,0.00014768,2]
[408460213,1773677433053,-6545.31934174,0.00014904,2]
[408460214,1773677433064,-1058.28,0.00014953,2]
[408460215,1773677433074,-250.0,0.00015,2]
[408460216,1773677433083,-504.6585806,0.00015121,2]
[408460217,1773677433091,-627.19703471,0.00015121,2]
[408460218,1773677433102,-1000.0,0.00015121,2]
[408460219,1773677433111,-1058.28,0.00015381,2]
[408460220,1773677433121,-6545.31934174,0.00015403,2]
[408460221,1773677433131,-2351.0,0.00015508,2]
[408460222,1773677433140,-180.0,0.00015517,2]
[408460223,1773677433149,-433.0,0.00015706,2]
[408460224,1773677433158,-1058.28,0.00015808,2]
[408460225,1773677433167,-6545.31934174,0.00015903,2]
[408460226,1773677433176,-519.30542078,0.00016,2]
[408460227,1773677433185,-658.11,0.00016021,2]
[408460228,1773677433194,-1000.0,0.00016199,2]
[408460229,1773677433204,-10012.79688764,0.000162,5]
[408460230,1773677433213,-500.0,0.00016233,2]
[408460231,1773677433222,-1058.28,0.00016235,2]
[408460232,1773677433232,-200.0,0.00016235,2]
[408460233,1773677433242,-6545.31934174,0.00016402,2]
[408460234,1773677433252,-2000.0,0.00016409,2]
[408460235,1773677433260,-1806.63,0.00016539,2]
[408460236,1773677433270,-500.0,0.00016541,2]
[408460237,1773677433279,-200.0,0.00016541,2]
[408460238,1773677433288,-151.0,0.00016541,2]
[408460239,1773677433297,-500.0,0.00016541,2]
[408460240,1773677433307,-3932.74,0.00016551,2]
[408460241,1773677433317,-500.0,0.00016717,2]
[408460242,1773677433327,-6545.31934174,0.00016902,2]
[408460243,1773677433336,-1806.63,0.00016953,2]
[408460244,1773677433345,-2426.2501,0.00016958,2]
[408460245,1773677433354,-283.0,0.00016964,2]
[408460246,1773677433363,-300.0,0.00017,2]
[408460247,1773677433372,-9106.51702695,0.00017,2]
[408460248,1773677433382,-532.0,0.00017,2]
[408460249,1773677433391,-398.0,0.00017005,2]
[408460250,1773677433400,-3292.0,0.00017058,2]
[408460251,1773677433409,-232.799944,0.00017231,7]
[408460252,1773677433419,-240.408678,0.00017231,7]
[408460253,1773677433429,-1806.63,0.00017366,2]
[408460254,1773677433438,-6545.31934174,0.00017401,2]
[408460255,1773677433448,-219.9127108,0.00017459,2]
[408460256,1773677433458,-18834.23475067,0.00017459,2]
[408460257,1773677433467,-160.37158407,0.00017482,2]
[408460258,1773677433476,-159.65926722,0.000175,2]
[408460259,1773677433486,-5076.33846492,0.000175,2]
[408460260,1773677433496,-302094.91107945,0.000175,2]
[408460261,1773677433514,-5915.71836501,0.000175,2]
[408460268,1773677437397,-1328.50047263,0.000175,2]
[408460269,1773677437408,-1146.58067695,0.000175,2]
[408460270,1773677437420,-1740.69043274,0.000175,2]
[408460271,1773677437432,-482.79021272,0.000175,2]
[408460272,1773677437443,-366.25,0.000175,2]
[408460273,1773677437560,-7055.0,0.000175,2]
[408460294,1773677439565,-1186585.80999241,0.000175,2]
[408460295,1773677439575,-2278938.75129721,0.000175,2]
[408460296,1773677439585,-163365.94772239,0.000175,2]
[408460297,1773677439595,-400.0,0.000175,6]
[408460298,1773677439604,-18629.13,0.00017507,2]
[408460299,1773677439616,-3572.0,0.00017534,2]
[408460300,1773677439627,-527.1589517,0.00017547,2]
[408460301,1773677439639,-500.0,0.00017548,2]
[408460302,1773677439650,-500.0,0.00017548,2]
[408460303,1773677439659,-500.0,0.00017548,2]
[408460304,1773677439669,-500.0,0.00017548,2]
[408460305,1773677439678,-500.0,0.00017548,2]
[408460306,1773677439688,-500.0,0.00017548,2]
[408460307,1773677439697,-504.81663731,0.00017548,2]
[408460308,1773677439708,-563.57524371,0.00017549,2]
[408460309,1773677439718,-151.0,0.00017556,2]
[408460310,1773677439728,-151.0,0.00017556,2]
[408460311,1773677439738,-151.0,0.00017556,2]
[408460312,1773677439748,-181.37562105,0.00017558,2]
[408460313,1773677439758,-500.0,0.00017558,2]
[408460314,1773677439767,-312.05943918,0.00017558,2]
[408460315,1773677439777,-305.00512206,0.00017558,2]
[408460316,1773677439789,-500.0,0.00017558,2]
[408460317,1773677439799,-500.0,0.00017558,2]
[408460318,1773677439811,-631.83369843,0.00017558,2]
[408460319,1773677439822,-1151.278279,0.00017558,5]
[408460320,1773677439831,-500.0,0.00017558,2]
[408460321,1773677439842,-182.61008857,0.00017558,2]
[408460322,1773677439853,-500.0,0.00017558,2]
[408460323,1773677439862,-500.0,0.00017558,2]
[408460324,1773677439872,-500.0,0.00017558,2]
[408460325,1773677439881,-500.0,0.00017558,2]
[408460326,1773677439891,-500.0,0.00017558,2]
[408460327,1773677439900,-565.08716826,0.00017558,2]
[408460328,1773677439910,-340.19,0.00017558,2]
[408460329,1773677439919,-500.0,0.00017558,2]
[408460330,1773677439928,-255.50531878,0.00017558,2]
[408460331,1773677439937,-1273557.67403915,0.00017559,2]
[408460332,1773677439957,-1182.80217175,0.00017559,2]
[408460333,1773677439967,-399.23641996,0.00017559,2]
[408460334,1773677439978,-1413.47813135,0.00017559,2]
[408460335,1773677439989,-374.32,0.00017559,2]
[408460336,1773677440049,-23208.59127435,0.00017559,2]
[408460338,1773677440063,-5814.26777367,0.00017559,2]
[408460339,1773677440074,-383.45408857,0.00017559,2]
[408460340,1773677440084,-1123.17140175,0.00017559,2]
[408460353,1773677442509,-12106.00375038,0.00017559,2]
[408460354,1773677442522,-276990.59177464,0.00017559,2]
[408460355,1773677442533,-2011.21213298,0.00017559,2]
[408460356,1773677442544,-524.0,0.00017559,2]
[408460357,1773677442557,-594.8605881,0.00017559,2]
[408460358,1773677442652,-1013.90818095,0.00017559,2]
[408460359,1773677442700,-73150.0,0.00017559,2]
[408460361,1773677445356,-10349.27104002,0.00017559,2]
[408460362,1773677445367,-652.459,0.00017559,2]
[408460363,1773677445378,-1500.0,0.00017559,2]
[408460364,1773677445509,-451.0000004,0.00017559,2]
[408460365,1773677445567,-626.14571777,0.00017559,2]
[408460366,1773677445579,-1140.2498,0.00017559,2]
[408460425,1773678243773,2130.68846202,9.5e-05,2]
[408460434,1773678554146,-766.4862044,0.00012901,2]
[408460452,1773678631813,-1186.1037956,0.00012901,2]
[408460454,1773678631823,-4824.52949199,0.0001408,2]
[408460456,1773678631833,-284.71327106,0.00014634,2]
[408460458,1773678631843,-583.56965981,0.00014734,2]
[408460460,1773678631853,-250.0,0.00015,2]
[408460462,1773678631862,-300.0,0.00015108,2]
[408460464,1773678631871,-1200.0,0.00015108,2]
[408460466,1773678631881,-300.0,0.00015108,2]
[408460468,1773678631890,-250.0,0.0001511,2]
[408460470,1773678631899,-300.0,0.0001511,2]
[408460472,1773678631909,-600.0,0.0001511,2]
[408460474,1773678631918,-153.46184497,0.0001511,2]
[408460476,1773678631927,-213.65,0.00015287,2]
[408460478,1773678631936,-136.90444587,0.00015488,2]
[408460481,1773678631947,-463.09555413,0.00015488,2]
[408460482,1773678631956,-420.0,0.00015617,2]
[408460484,1773678631965,-5103.8,0.00015653,2]
[408460486,1773678631974,-1852.42,0.00015664,2]
[408460488,1773678631983,-166.66,0.00015702,2]
[408460490,1773678631992,-418.0,0.000158,3]
[408460492,1773678632005,-300.0,0.00015807,2]
[408460494,1773678632015,-500.0,0.00015808,2]
[408460496,1773678632025,-20009.13,0.00015808,2]
[408460498,1773678632034,-1500.0,0.00015956,2]
[408460500,1773678632043,-1932.74666311,0.00015956,2]
[408460513,1773678637752,-1509.88158727,0.00015956,2]
[408460562,1773678639795,-6557.36174962,0.00015956,2]
[408460563,1773678639804,-150.99,0.00015956,2]
[408460564,1773678639815,-209.357476,0.00016,2]
[408460565,1773678639824,-166.66,0.00016033,2]
[408460566,1773678639835,-1129.94,0.00016033,2]
[408460567,1773678639844,-175.71,0.00016167,2]
[408460568,1773678639854,-150.0,0.00016256,2]
[408460569,1773678639863,-358.11667338,0.00016283,2]
[408460570,1773678639874,-200.0,0.00016283,2]
[408460571,1773678639884,-299.99,0.00016293,4]
[408460572,1773678639895,-9999.99,0.00016293,2]
[408460573,1773678639905,-813.64,0.00016293,2]
[408460574,1773678639916,-9999.99,0.00016293,2]
[408460575,1773678639926,-9999.99,0.00016293,2]
[408460576,1773678639936,-4006.81,0.00016295,2]
[408460577,1773678639946,-500.0,0.000163,2]
[408460578,1773678639955,-226.25868546,0.00016313,2]
[408460579,1773678639965,-166.66,0.00016364,2]
[408460580,1773678639974,-1680.0,0.00016617,2]
[408460581,1773678639984,-500.0,0.00016631,2]
[408460582,1773678639992,-276.03757805,0.00016678,5]
[408460583,1773678640002,-500.0,0.00016685,2]
[408460584,1773678640011,-166.66,0.00016694,2]
[408460585,1773678640020,-242.2,0.00016731,2]
[408460586,1773678640030,-166.66,0.00016761,2]
[408460587,1773678640039,-2000.0,0.00016785,2]
[408460588,1773678640048,-1000.0,0.00016848,2]
[408460589,1773678640058,-18629.13,0.00016904,2]
[408460590,1773678640069,-510.0,0.0001693,2]
[408460591,1773678640077,-786.64,0.0001693,2]
[408460592,1773678640087,-511.0,0.00017,2]
[408460593,1773678640097,-300.0,0.00017,2]
[408460594,1773678640107,-166.66,0.00017025,2]
[408460595,1773678640118,-175.71,0.00017065,2]
[408460596,1773678640127,-3067.78647694,0.00017296,2]
[408460597,1773678640136,-4181.96834686,0.00017296,2]
[408460598,1773678640146,-166.66,0.00017314,2]
[408460599,1773678640155,-500.0,0.00017315,2]
[408460600,1773678640164,-213.00181962,0.00017319,2]
[408460601,1773678640174,-166.66,0.00017355,2]
[408460602,1773678640183,-3067.78647687,0.00017363,2]
[408460603,1773678640193,-16950.81127563,0.00017382,2]
[408460604,1773678640204,-500.0,0.00017389,2]
[408460605,1773678640214,-500.0,0.00017389,2]
[408460606,1773678640225,-500.0,0.00017389,2]
[408460607,1773678640234,-500.0,0.00017389,2]
[408460608,1773678640244,-500.0,0.00017389,2]
[408460609,1773678640253,-485.04539289,0.00017389,2]
[408460610,1773678640263,-500.0,0.00017389,2]
[408460611,1773678640272,-500.0,0.00017389,2]
[408460612,1773678640281,-500.0,0.00017389,2]
[408460613,1773678640290,-500.0,0.00017389,2]
[408460614,1773678640299,-500.0,0.00017389,2]
[408460616,1773678640308,-500.0,0.00017389,2]
[408460618,1773678640322,-500.0,0.00017389,2]
[408460620,1773678640331,-500.0,0.00017389,2]
[408460622,1773678640341,-500.0,0.00017389,2]
[408460623,1773678640354,-500.0,0.00017389,2]
[408460624,1773678640364,-500.0,0.00017389,2]
[408460625,1773678640373,-500.0,0.00017389,2]
[408460626,1773678640383,-521.97198954,0.00017389,2]
[408460627,1773678640394,-521.97198954,0.00017389,2]
[408460628,1773678640403,-500.0,0.00017389,2]
[408460629,1773678640413,-276.37987504,0.00017389,2]
[408460630,1773678640423,-521.97198954,0.00017389,2]
[408460631,1773678640432,-500.0,0.00017389,2]
[408460632,1773678640442,-500.0,0.00017389,2]
[408460633,1773678640450,-409.08964616,0.00017389,2]
[408460634,1773678640460,-521.97198954,0.00017389,2]
[408460635,1773678640469,-521.97198954,0.00017389,2]
[408460636,1773678640478,-521.97198954,0.00017389,2]
[408460637,1773678640487,-521.97198954,0.00017389,2]
[408460638,1773678640496,-521.97198954,0.00017389,2]
[408460639,1773678640505,-521.97198954,0.00017389,2]
[408460640,1773678640514,-389.00929279,0.00017389,2]
[408460641,1773678640523,-500.0,0.00017389,2]
[408460642,1773678640532,-224184.18114331,0.0001739,2]
[408460643,1773678640541,-500.0,0.00017396,2]
[408460644,1773678640550,-151.76171,0.00017406,2]
[408460645,1773678640559,-221.0,0.00017406,2]
[408460646,1773678640569,-221.0,0.00017406,2]
[408460647,1773678640579,-258.34580379,0.00017424,2]
[408460648,1773678640588,-792.17729229,0.00017424,2]
[408460649,1773678640597,-3067.78647687,0.0001743,2]
[408460650,1773678640606,-221.52215176,0.00017448,2]
[408460651,1773678640615,-465.11,0.00017456,2]
[408460652,1773678640624,-465.11,0.00017456,2]
[408460653,1773678640633,-3067.78647687,0.00017497,2]
[408460654,1773678640642,-400.0,0.000175,6]
[408460655,1773678640651,-3572.0,0.00017507,2]
[408460656,1773678640660,-16950.8112756,0.00017514,2]
[408460657,1773678640669,-151.0,0.00017521,2]
[408460658,1773678640678,-151.0,0.00017521,2]
[408460659,1773678640686,-151.0,0.00017521,2]
[408460660,1773678640695,-1151.278279,0.00017523,5]
[408460661,1773678640704,-1131.65,0.00017523,2]
[408460662,1773678640714,-500.0,0.00017523,2]
[408460663,1773678640723,-500.0,0.00017523,2]
[408460664,1773678640732,-500.0,0.00017523,2]
[408460665,1773678640741,-500.0,0.00017523,2]
[408460666,1773678640750,-500.0,0.00017523,2]
[408460667,1773678640759,-500.0,0.00017523,2]
[408460668,1773678640768,-500.0,0.00017523,2]
[408460669,1773678640777,-500.0,0.00017523,2]
[408460670,1773678640787,-500.0,0.00017523,2]
[408460671,1773678640796,-500.0,0.00017523,2]
[408460672,1773678640805,-500.0,0.00017523,2]
[408460673,1773678640814,-539.35433442,0.00017523,2]
[408460674,1773678640823,-500.0,0.00017523,2]
[408460675,1773678640832,-500.0,0.00017523,2]
[408460676,1773678640841,-500.0,0.00017523,2]
[408460677,1773678640850,-500.0,0.00017523,2]
[408460678,1773678640859,-500.0,0.00017523,2]
[408460679,1773678640868,-500.0,0.00017523,2]
[408460680,1773678640877,-500.0,0.00017523,2]
[408460681,1773678640886,-500.0,0.00017523,2]
[408460682,1773678640895,-500.0,0.00017523,2]
[408460683,1773678640904,-500.0,0.00017523,2]
[408460684,1773678640913,-305.00512206,0.00017523,2]
[408460685,1773678640923,-500.0,0.00017523,2]
[408460686,1773678640932,-519.77479059,0.00017523,2]
[408460687,1773678640941,-500.0,0.00017523,2]
[408460688,1773678640951,-500.0,0.00017523,2]
[408460689,1773678640960,-500.0,0.00017523,2]
[408460690,1773678640969,-500.0,0.00017523,2]
[408460691,1773678640978,-500.0,0.00017523,2]
[408460692,1773678640987,-500.0,0.00017523,2]
[408460693,1773678640996,-500.0,0.00017523,2]
[408460694,1773678641005,-500.0,0.00017523,2]
[408460695,1773678641014,-500.0,0.00017523,2]
[408460696,1773678641023,-256.59150072,0.00017523,2]
[408460697,1773678641033,-500.0,0.00017523,2]
[408460698,1773678641042,-181.37562105,0.00017523,2]
[408460699,1773678641051,-203.44131983,0.00017523,2]
[408460700,1773678641060,-521.97198954,0.00017523,2]
[408460701,1773678641069,-419.863559,0.00017523,2]
[408460702,1773678641078,-521.97198954,0.00017523,2]
[408460703,1773678641087,-500.0,0.00017523,2]
[408460704,1773678641096,-248.43441069,0.00017523,2]
[408460705,1773678641105,-521.97198954,0.00017523,2]
[408460706,1773678641114,-521.97198954,0.00017523,2]
[408460707,1773678641123,-500.0,0.00017523,2]
[408460708,1773678641132,-615.78020227,0.00017523,2]
[408460709,1773678641142,-167.98336313,0.00017523,2]
[408460710,1773678641151,-521.97198954,0.00017523,2]
[408460711,1773678641161,-199.28664865,0.00017523,2]
[408460712,1773678641170,-521.97198954,0.00017523,2]
[408460713,1773678641179,-521.97198954,0.00017523,2]
[408460714,1773678641189,-500.0,0.00017523,2]
[408460715,1773678641198,-500.0,0.00017523,2]
[408460716,1773678641207,-500.0,0.00017523,2]
[408460717,1773678641216,-500.0,0.00017523,2]
[408460718,1773678641226,-312.05943918,0.00017523,2]
[408460719,1773678641236,-500.0,0.00017524,2]
[408460720,1773678641245,-500.0,0.00017524,2]
[408460721,1773678641255,-500.0,0.00017524,2]
[408460722,1773678641265,-500.0,0.00017524,2]
[408460723,1773678641275,-500.0,0.00017524,2]
[408460724,1773678641285,-500.0,0.00017524,2]
[408460725,1773678641294,-500.0,0.00017524,2]
[408460726,1773678641303,-565.08716826,0.00017524,2]
[408460727,1773678641313,-1067741.7766423,0.00017524,2]
[408460739,1773678642929,-3384.22564328,0.00017459,2]
[408460740,1773678642939,-488669.14114419,0.00017524,2]
[408460746,1773678645890,-200.728719,0.00017336,7]
[408460748,1773678645899,-6095.69091828,0.00017524,2]
[408460781,1773679499835,5015.348,9e-05,2]
[408460784,1773679597090,-185.49082071,0.00016121,2]
[408460787,1773679633732,166.97,8.043e-05,2]
[408460789,1773679651125,-166.97,0.00012065,2]
[408460790,1773679651145,-39.76376474,0.00016087,2]
[408460794,1773679768077,-127.20623526,0.00016087,2]
[408460795,1773679768099,-180.0,0.0001612,2]
[408460796,1773679768120,-300.0,0.0001612,2]
[408460797,1773679768141,-369.51761172,0.0001612,2]
[408460808,1773679831663,-2000.0,0.00015946,2]
[408460809,1773679831672,-300.0,0.0001612,2]
[408460810,1773679831681,-1200.0,0.0001612,2]
[408460811,1773679831695,-350.58448698,0.0001612,2]
[408460812,1773679831704,-6705.58964479,0.00016121,2]
[408460813,1773679831714,-1730.18001078,0.00016121,2]
[408460814,1773679831724,-2136.4347,0.00016121,2]
[408460815,1773679831735,-569.13169042,0.00016121,2]
[408460816,1773679831745,-4866.79847194,0.00016121,2]
[408460819,1773679831909,-710.87669946,0.00016121,2]
[408460820,1773679831920,-3574.65524639,0.00016121,2]
[408460824,1773679831973,-515.94292169,0.00016121,2]
[408460826,1773679831984,-3674.20418729,0.00016121,2]
[408460828,1773679831995,-26345.61560653,0.00016121,2]
[408460829,1773679832005,-388.28173646,0.00016218,2]
[408460830,1773679832013,-1138.45,0.00016244,2]
[408460831,1773679832022,-200.0,0.00016253,2]
[408460832,1773679832031,-1391.93,0.00016345,2]
[408460833,1773679832041,-430.0,0.00016373,2]
[408460834,1773679832050,-500.0,0.00016374,2]
[408460835,1773679832059,-400.0,0.000165,6]
[408460836,1773679832071,-800.0,0.000166,6]
[408460837,1773679832239,-321.0,0.00016619,2]
[408460838,1773679832249,-1404.0,0.00016627,2]
[408460839,1773679832258,-500.0,0.0001663,2]
[408460840,1773679832267,-1300.0,0.000167,6]
[408460841,1773679832276,-3849.57414382,0.00016751,2]
[408460842,1773679832286,-9999.99,0.00016753,2]
[408460843,1773679832295,-23251.34,0.00016753,2]
[408460844,1773679832313,-350.73,0.00016753,2]
[408460845,1773679832325,-9999.99,0.00016753,2]
[408460846,1773679832335,-9999.99,0.00016753,2]
[408460847,1773679832344,-6920.13270365,0.00016753,2]
[408460848,1773679832357,-3079.85729635,0.00016753,2]
[408460849,1773679832366,-1391.93,0.00016754,2]
[408460850,1773679832376,-999.99,0.00016754,2]
[408460851,1773679832385,-4636.76,0.00016754,2]
[408460852,1773679832395,-352.17,0.00016754,2]
[408460853,1773679832406,-8445.54,0.00016754,2]
[408460854,1773679832416,-150.99,0.00016754,2]
[408460855,1773679832425,-150.99,0.00016754,2]
[408460856,1773679832435,-7591.86,0.00016754,2]
[408460857,1773679832445,-1700.0,0.000168,6]
[408460858,1773679832455,-2100.0,0.000169,6]
[408460859,1773679832465,-168.1,0.0001699,2]
[408460860,1773679832476,-512.0,0.00017,2]
[408460861,1773679832486,-210.21,0.00017003,2]
[408460862,1773679832496,-368.42047707,0.000171,2]
[408460863,1773679832506,-790.58444216,0.000171,2]
[408460864,1773679832516,-719.31737857,0.000171,2]
[408460865,1773679832527,-292.59584027,0.00017144,2]
[408460866,1773679832536,-2879.93685579,0.00017154,2]
[408460867,1773679832550,-779.28544773,0.00017154,2]
[408460868,1773679832560,-411.57177065,0.00017163,2]
[408460869,1773679832592,-980.35822935,0.00017163,2]
[408460870,1773679832603,-1398.391786,0.00017173,2]
[408460879,1773679837792,-6941.0857215,0.00016591,2]
[408460880,1773679837803,-12937.91793882,0.00017173,2]
[408460881,1773679837814,-500.0,0.00017181,2]
[408460882,1773679837824,-347.16141656,0.00017181,2]
[408460883,1773679837835,-500.0,0.00017181,2]
[408460884,1773679837849,-500.0,0.00017181,2]
[408460885,1773679837859,-500.0,0.00017181,2]
[408460886,1773679837869,-500.0,0.00017181,2]
[408460887,1773679837879,-205.58524944,0.00017181,2]
[408460888,1773679837888,-507.6312827,0.00017181,2]
[408460889,1773679837897,-500.0,0.00017181,2]
[408460890,1773679837907,-178.72497373,0.00017181,2]
[408460891,1773679837916,-500.0,0.00017181,2]
[408460892,1773679837926,-500.0,0.00017181,2]
[408460893,1773679837936,-500.0,0.00017181,2]
[408460894,1773679837946,-500.0,0.00017181,2]
[408460895,1773679837955,-500.0,0.00017181,2]
[408460896,1773679837963,-500.0,0.00017181,2]
[408460897,1773679837974,-470.56792155,0.00017181,2]
[408460898,1773679837984,-500.0,0.00017181,2]
[408460899,1773679837993,-500.0,0.00017181,2]
[408460900,1773679838002,-308.17170675,0.00017181,2]
[408460901,1773679838012,-500.0,0.00017181,2]
[408460902,1773679838022,-498.50568057,0.00017181,2]
[408460903,1773679838031,-500.0,0.00017181,2]
[408460904,1773679838040,-500.0,0.00017181,2]
[408460905,1773679838050,-500.0,0.00017181,2]
[408460907,1773679838059,-500.0,0.00017181,2]
[408460909,1773679838069,-357.10592468,0.00017181,2]
[408460910,1773679838079,-500.0,0.00017181,2]
[408460911,1773679838088,-500.0,0.00017181,2]
[408460912,1773679838097,-500.0,0.00017181,2]
[408460913,1773679838107,-500.0,0.00017181,2]
[408460914,1773679838117,-500.0,0.00017181,2]
[408460915,1773679838127,-500.0,0.00017181,2]
[408460916,1773679838136,-500.0,0.00017181,2]
[408460917,1773679838145,-500.0,0.00017181,2]
[408460918,1773679838155,-500.0,0.00017181,2]
[408460919,1773679838163,-500.0,0.00017181,2]
[408460920,1773679838173,-500.0,0.00017181,2]
[408460921,1773679838182,-500.0,0.00017181,2]
[408460922,1773679838191,-500.0,0.00017181,2]
[408460923,1773679838200,-500.0,0.00017181,2]
[408460924,1773679838210,-500.0,0.00017181,2]
[408460925,1773679838220,-500.0,0.00017181,2]
[408460926,1773679838232,-500.0,0.00017181,2]
[408460927,1773679838242,-500.0,0.00017181,2]
[408460928,1773679838251,-500.0,0.00017181,2]
[408460929,1773679838261,-500.0,0.00017181,2]
[408460930,1773679838272,-500.0,0.00017181,2]
[408460931,1773679838281,-500.0,0.00017181,2]
[408460932,1773679838290,-254.41745179,0.00017181,2]
[408460933,1773679838299,-500.0,0.00017181,2]
[408460934,1773679838310,-500.0,0.00017181,2]
[408460935,1773679838320,-1500.0,0.00017182,7]
[408460936,1773679838330,-1700.0,0.00017182,7]
[408460937,1773679838339,-500.0,0.00017229,2]
[408460938,1773679838349,-500.0,0.00017231,2]
[408460939,1773679838358,-500.0,0.00017231,2]
[408460940,1773679838368,-500.0,0.00017231,2]
[408460941,1773679838378,-500.0,0.00017231,2]
[408460942,1773679838387,-213.50358544,0.00017231,2]
[408460943,1773679838397,-500.0,0.00017231,2]
[408460944,1773679838406,-500.0,0.00017231,2]
[408460945,1773679838415,-229.6140505,0.00017231,2]
[408460946,1773679838426,-450.39235911,0.00017231,2]
[408460947,1773679838446,-118.04924832,0.00017231,2]
[408460948,1773679838456,-12553.83267512,0.00017232,2]
[408460949,1773679838471,-1525.42910926,0.00017232,2]
[408460965,1773679840092,-287757.4601306,0.00017232,2]
[408460966,1773679840104,-40024.17277297,0.00017232,2]
[408460967,1773679840197,-3478.09586045,0.00017232,2]
[408460984,1773679842816,-180.70779916,0.0001602,2]
[408460985,1773679842827,-12650.63785897,0.00017232,2]
[408460986,1773679843080,-14164.5725892,0.00017232,2]
[408460987,1773679843091,-363199.2298482,0.00017232,2]
[408461007,1773679845664,-2709.87588083,0.00017154,2]
[408461008,1773679845674,-58383.84959255,0.00017232,2]
[408461009,1773679845709,-521.25666798,0.00017232,2]
[408461010,1773679845921,-3115.67936183,0.00017232,2]
[408461011,1773679845975,-11053.57,0.00017232,2]
[408461012,1773679846032,-287.87202581,0.00017232,2]
[408461013,1773679846085,-722.07489531,0.00017232,2]
[408461014,1773679846097,-2000.0,0.00017232,2]
[408461059,1773680535563,617.37656424,9.501e-05,2]
[408461060,1773680535595,1461.48110588,9.501e-05,2]
[408461075,1773680909651,5523.68,9.501e-05,2]
[408461077,1773680933660,2666.0,9.501e-05,2]
[408461078,1773680952679,2857.67,9.501e-05,2]
[408461079,1773680966160,-258.0,0.000132,2]
[408461080,1773680966179,-174.13,0.000132,2]
[408461081,1773680966199,-600.0,0.00013888,2]
[408461082,1773680966218,-166.66,0.00014161,2]
[408461083,1773680966238,-1500.0,0.00014352,2]
[408461084,1773680966257,-180.70779916,0.0001442,2]
[408461085,1773680966291,-166.66,0.00014459,2]
[408461086,1773680966321,-1200.0,0.00014519,2]
[408461087,1773680966344,-300.0,0.00014519,2]
[408461088,1773680966366,-500.0,0.0001452,2]
[408461089,1773680966389,-5000.0,0.0001452,2]
[408461090,1773680966412,-300.0,0.0001452,2]
[408461091,1773680966433,-600.0,0.0001452,2]
[408461092,1773680966454,-250.0,0.0001452,2]
[408461093,1773680966475,-298.82278026,0.0001452,2]
[408461094,1773680966495,-250.0,0.0001452,2]
[408461095,1773680966516,-270.65420266,0.00014632,2]
[408461096,1773680966535,-500.0,0.000147,2]
[408461097,1773680966554,-260.02953914,0.000147,2]
[408461098,1773680966573,-160.09353282,0.000147,2]
[408461099,1773680966594,-500.0,0.00014733,2]
[408461100,1773680966614,-463.65151817,0.00014733,2]
[408461120,1773681031794,-1200.0,0.00014732,2]
[408461123,1773681031804,-272.0,0.00014732,2]
[408461125,1773681031814,-4420.8,0.00014733,2]
[408461126,1773681031847,-793.29285291,0.00014733,2]
[408461127,1773681031858,-367.55852767,0.00014733,2]
[408461128,1773681031869,-355.00000001,0.00014733,2]